fUST/lending_fUST_20250312
["ID","MTS","AMOUNT","RATE_DAILY","PERIOD"]
[355998924,1741790576977,-2000.0,0.00040932,120]
[355998925,1741790577045,-2000.0,0.00040986,120]
[355998926,1741790577112,-706.85,0.00041,14]
[355998927,1741790577173,-1296.09,0.00041,120]
[355998928,1741790577236,-2000.0,0.00041041,120]
[355998929,1741790577297,-300.0,0.00041095,120]
[355998930,1741790577358,-330.9987873,0.00041095,120]
[355998931,1741790577412,-1000.0,0.00041095,20]
[355998932,1741790577470,-1037.09381758,0.00041095,20]
[355998933,1741790577540,-500.0,0.00041095,120]
[355998934,1741790577598,-502.43665917,0.00041095,120]
[355998935,1741790577659,-6588.89,0.00041095,120]
[355998936,1741790577729,-260.32,0.00041095,30]
[355998937,1741790578006,-150.0,0.00041096,10]
[355998938,1741790578070,-150.0,0.00041096,10]
[355998939,1741790578136,-150.0,0.00041096,10]
[355998940,1741790578199,-50000.0,0.00041096,30]
[355998941,1741790578259,-2000.0,0.00041096,120]
[355998942,1741790578322,-210.0147,0.00041096,31]
[355998943,1741790578386,-490.0343,0.00041096,31]
[355998944,1741790578446,-791.79,0.000412,31]
[355998945,1741790578507,-791.79,0.000412,31]
[355998946,1741790578574,-791.79,0.000412,31]
[355998947,1741790578645,-791.79,0.000412,31]
[355998948,1741790578708,-791.79,0.000412,31]
[355998949,1741790578770,-791.79,0.000412,31]
[355998950,1741790578833,-791.79,0.000412,31]
[355998951,1741790578900,-791.79,0.000412,31]
[355998952,1741790578972,-791.79,0.000412,31]
[355998953,1741790579043,-791.79,0.000412,31]
[355998954,1741790579112,-791.79,0.000412,31]
[355998955,1741790579183,-791.79,0.000412,31]
[355998956,1741790579226,-791.79,0.000412,31]
[355998957,1741790579268,-791.79,0.000412,31]
[355998958,1741790579309,-791.79,0.000412,31]
[355998959,1741790579351,-791.79,0.000412,31]
[355998960,1741790579392,-791.79,0.000412,31]
[355998961,1741790579434,-791.79,0.000412,31]
[355998962,1741790579471,-791.79,0.000412,31]
[355998963,1741790579508,-791.79,0.000412,31]
[355998964,1741790579544,-791.79,0.000412,31]
[355998965,1741790579579,-791.79,0.000412,31]
[355998966,1741790579616,-791.79,0.000412,31]
[355998967,1741790579655,-791.79,0.000412,31]
[355998968,1741790579690,-500.0,0.00041233,10]
[355998969,1741790579724,-200.0,0.0004129,120]
[355998970,1741790579756,-500.0,0.0004137,10]
[355998971,1741790579791,-150000.0,0.00041392,120]
[355998972,1741790579824,-5458.52,0.000415,30]
[355998973,1741790579856,-500.0,0.00041507,10]
[355998974,1741790579891,-1778.99,0.000416,30]
[355998975,1741790579923,-268.70775074,0.00041644,10]
[355998976,1741790579958,-500.0,0.00041644,10]
[355998977,1741790579993,-500.0,0.00041644,60]
[355998978,1741790580030,-3498.42,0.0004174,120]
[355998979,1741790580070,-500.0,0.00041781,10]
[355998980,1741790580108,-250.0,0.00041918,10]
[355998981,1741790580147,-500.0,0.00041918,10]
[355998982,1741790580189,-10000.0,0.00042,42]
[355998983,1741790580227,-150.0,0.00042,120]
[355998984,1741790580270,-2000.0,0.00042,32]
[355998985,1741790580311,-2868.51574667,0.00042,120]
[355998986,1741790580351,-500.0,0.00042055,10]
[355998987,1741790580392,-200.0,0.00042179,120]
[355998988,1741790580431,-500.0,0.00042192,10]
[355998989,1741790580469,-500.0,0.00042329,10]
[355998990,1741790580506,-6588.89,0.00042465,120]
[355998991,1741790580543,-260.32,0.00042465,30]
[355998992,1741790580577,-500.0,0.00042466,10]
[355998993,1741790580612,-500.0,0.00042603,10]
[355998994,1741790580647,-5458.52,0.000427,30]
[355998995,1741790580681,-195.27368677,0.0004274,10]
[355998996,1741790580715,-500.0,0.0004274,10]
[355998997,1741790580749,-555.80373443,0.0004274,60]
[355998998,1741790580781,-2224.68461833,0.000428,90]
[355998999,1741790580814,-1778.99,0.000428,30]
[355999000,1741790580846,-500.0,0.00042877,10]
[355999001,1741790580878,-200.0,0.000429,120]
[355999002,1741790580916,-876200.000001,0.00042931,120]
[355999003,1741790580952,-150000.0,0.00043,120]
[355999004,1741790580994,-164816.8872559,0.00043,120]
[355999005,1741790581031,-60266.06243082,0.00043,120]
[355999006,1741790581069,-506.78,0.00043,120]
[355999007,1741790581106,-500.0,0.00043014,10]
[355999008,1741790581143,-500.0,0.00043151,10]
[355999009,1741790581181,-500.0,0.00043288,10]
[355999010,1741790581218,-500.0,0.00043425,10]
[355999011,1741790581258,-500.0,0.00043562,10]
[355999012,1741790581298,-500.0,0.00043699,10]
[355999013,1741790581334,-706.85,0.000438,14]
[355999014,1741790581369,-6588.89,0.00043835,120]
[355999015,1741790581407,-260.32,0.00043835,30]
[355999016,1741790581440,-500.0,0.00043836,10]
[355999017,1741790581473,-500.0,0.00043973,10]
[355999018,1741790581507,-252.9047547,0.00044,30]
[355999019,1741790581542,-14635.54146864,0.00044,60]
[355999020,1741790581577,-500.0,0.0004411,10]
[355999021,1741790581614,-280.02664907,0.00044164,21]
[355999022,1741790581651,-5458.52,0.000442,30]
[355999023,1741790581687,-500.0,0.00044247,10]
[355999024,1741790581722,-200.0,0.00044365,120]
[355999025,1741790581755,-500.0,0.00044384,10]
[355999026,1741790581793,-1778.99,0.000445,30]
[355999027,1741790581828,-500.0,0.00044521,10]
[355999028,1741790581864,-500.0,0.00044658,10]
[355999029,1741790581899,-463.0,0.00044658,10]
[355999030,1741790581937,-5388.06289885,0.0004495,95]
[355999031,1741790581979,-10000.0,0.00045,47]
[355999032,1741790582141,-50000.0,0.00045,30]
[355999033,1741790582180,-480.07939245,0.00045,30]
[355999034,1741790582217,-5082.0,0.00045,120]
[355999035,1741790582258,-2034.0,0.00045,30]
[355999036,1741790582296,-10000.0,0.00045,120]
[355999037,1741790582331,-10000.0,0.00045,30]
[355999038,1741790582365,-506.0,0.00045,120]
[355999039,1741790582399,-252.15249129,0.00045,14]
[355999040,1741790582433,-50000.0,0.00045,120]
[355999041,1741790582466,-500.0,0.00045,20]
[355999042,1741790582498,-2000.0,0.00045,15]
[355999043,1741790582531,-35148.52717771,0.00045,120]
[355999044,1741790582564,-151.0,0.00045,120]
[355999045,1741790582597,-151.0,0.00045,120]
[355999046,1741790582634,-698.13045796,0.00045,120]
[355999047,1741790582672,-364.761,0.00045144,73]
[355999048,1741790582709,-200.0,0.00045158,120]
[355999049,1741790582745,-6588.89,0.00045205,120]
[355999050,1741790582782,-260.32,0.00045205,30]
[355999051,1741790582819,-200.0,0.00045352,120]
[355999052,1741790582854,-101000.0,0.000455,120]
[355999053,1741790582892,-200.0,0.0004569,120]
[355999054,1741790582934,-791.79,0.000458,39]
[355999055,1741790582978,-791.79,0.000458,39]
[355999056,1741790583023,-791.79,0.000458,39]
[355999057,1741790583070,-791.79,0.000458,39]
[355999058,1741790583113,-791.79,0.000458,39]
[355999059,1741790583158,-791.79,0.000458,39]
[355999060,1741790583202,-791.79,0.000458,39]
[355999061,1741790583247,-791.79,0.000458,39]
[355999062,1741790583290,-791.79,0.000458,39]
[355999063,1741790583334,-791.79,0.000458,39]
[355999064,1741790583383,-791.79,0.000458,39]
[355999065,1741790583432,-791.79,0.000458,39]
[355999066,1741790583478,-791.79,0.000458,39]
[355999067,1741790583521,-791.79,0.000458,39]
[355999068,1741790583562,-791.79,0.000458,39]
[355999069,1741790583606,-791.79,0.000458,39]
[355999070,1741790583648,-791.79,0.000458,39]
[355999071,1741790583689,-791.79,0.000458,39]
[355999072,1741790583730,-791.79,0.000458,39]
[355999073,1741790583771,-791.79,0.000458,39]
[355999074,1741790583812,-791.79,0.000458,39]
[355999075,1741790583855,-791.79,0.000458,39]
[355999076,1741790583899,-791.79,0.000458,39]
[355999077,1741790583944,-791.79,0.000458,39]
[355999078,1741790583984,-171522.4700388,0.0004588,30]
[355999079,1741790584025,-19081.25629903,0.0004588,30]
[355999080,1741790584065,-200.0,0.00045893,120]
[355999081,1741790584107,-1778.99,0.000459,30]
[355999082,1741790584148,-38184.94851477,0.00045999,60]
[355999083,1741790584191,-343299.75588442,0.00046,120]
[355999084,1741790584233,-50000.0,0.00046,30]
[355999085,1741790584280,-5458.52,0.00046,30]
[355999086,1741790584322,-769.93060176,0.00046,120]
[355999087,1741790584363,-2000.0,0.00046,60]
[355999088,1741790584405,-668.49,0.00046027,30]
[355999089,1741790584446,-253.28886337,0.00046301,30]
[355999090,1741790584486,-500.0,0.00046575,120]
[355999091,1741790584523,-500.0,0.00046575,120]
[355999092,1741790584561,-500.0,0.00046575,120]
[355999093,1741790584600,-500.0,0.00046575,120]
[355999094,1741790584640,-523.29543387,0.00046575,120]
[355999095,1741790584678,-668.49,0.00046575,35]
[355999096,1741790584716,-6588.89,0.00046575,120]
[355999097,1741790584757,-260.32,0.00046575,30]
[355999098,1741790584797,-545.71836005,0.0004658,120]
[355999099,1741790584835,-545.71836005,0.0004658,120]
[355999100,1741790584875,-545.71836005,0.0004658,120]
[355999101,1741790584918,-545.71836005,0.0004658,120]
[355999102,1741790584960,-545.71836005,0.0004658,120]
[355999103,1741790585006,-545.71836005,0.0004658,120]
[355999104,1741790585048,-545.71836005,0.0004658,120]
[355999105,1741790585088,-545.71836005,0.0004658,120]
[355999106,1741790585126,-545.71836005,0.0004658,120]
[355999107,1741790585170,-545.71836005,0.0004658,120]
[355999108,1741790585212,-545.71836005,0.0004658,120]
[355999109,1741790585253,-545.71836005,0.0004658,120]
[355999110,1741790585292,-545.71836005,0.0004658,120]
[355999111,1741790585330,-545.71836005,0.0004658,120]
[355999112,1741790585368,-545.71836005,0.0004658,120]
[355999113,1741790585403,-545.71836005,0.0004658,120]
[355999114,1741790585441,-545.71836005,0.0004658,120]
[355999115,1741790585477,-545.71836005,0.0004658,120]
[355999116,1741790585513,-545.71836005,0.0004658,120]
[355999117,1741790585549,-545.71,0.0004658,120]
[355999118,1741790585585,-1273.34284012,0.0004658,120]
[355999119,1741790585621,-1273.34284012,0.0004658,120]
[355999120,1741790585656,-1273.34284012,0.0004658,120]
[355999121,1741790585691,-1273.34284012,0.0004658,120]
[355999122,1741790585728,-1273.34284012,0.0004658,120]
[355999123,1741790585763,-1273.34284012,0.0004658,120]
[355999124,1741790585801,-1273.34284012,0.0004658,120]
[355999125,1741790585835,-1273.34284012,0.0004658,120]
[355999126,1741790585868,-1273.34284012,0.0004658,120]
[355999127,1741790586034,-1273.34284012,0.0004658,120]
[355999128,1741790586074,-1273.34284012,0.0004658,120]
[355999129,1741790586112,-1273.34284012,0.0004658,120]
[355999130,1741790586153,-1273.34284012,0.0004658,120]
[355999131,1741790586192,-1273.34284012,0.0004658,120]
[355999132,1741790586231,-1273.34284012,0.0004658,120]
[355999133,1741790586275,-1273.34284012,0.0004658,120]
[355999134,1741790586312,-1273.34284012,0.0004658,120]
[355999135,1741790586352,-1273.34284012,0.0004658,120]
[355999136,1741790586391,-1273.34284012,0.0004658,120]
[355999137,1741790586431,-1273.34,0.0004658,120]
[355999138,1741790586472,-1721.91063052,0.0004658,120]
[355999139,1741790586509,-1721.91063052,0.0004658,120]
[355999140,1741790586545,-1721.91063052,0.0004658,120]
[355999141,1741790586582,-1721.91063052,0.0004658,120]
[355999142,1741790586617,-1721.91063052,0.0004658,120]
[355999143,1741790586652,-1721.91063052,0.0004658,120]
[355999144,1741790586687,-1721.91063052,0.0004658,120]
[355999145,1741790586720,-1721.91063052,0.0004658,120]
[355999146,1741790586755,-1721.91063052,0.0004658,120]
[355999147,1741790586791,-1721.91063052,0.0004658,120]
[355999148,1741790586826,-1721.91063052,0.0004658,120]
[355999149,1741790586863,-1721.91063052,0.0004658,120]
[355999150,1741790586901,-1721.91063052,0.0004658,120]
[355999151,1741790586938,-1721.91063052,0.0004658,120]
[355999152,1741790586973,-1721.91063052,0.0004658,120]
[355999153,1741790587011,-1721.91063052,0.0004658,120]
[355999154,1741790587049,-1721.91063052,0.0004658,120]
[355999155,1741790587086,-1721.91063052,0.0004658,120]
[355999156,1741790587123,-1721.91063052,0.0004658,120]
[355999157,1741790587167,-1721.91,0.0004658,120]
[355999158,1741790587204,-4017.79147121,0.0004658,120]
[355999159,1741790587242,-4017.79147121,0.0004658,120]
[355999160,1741790587277,-4017.79147121,0.0004658,120]
[355999161,1741790587313,-4017.79147121,0.0004658,120]
[355999162,1741790587347,-4017.79147121,0.0004658,120]
[355999163,1741790587382,-4017.79147121,0.0004658,120]
[355999164,1741790587416,-4017.79147121,0.0004658,120]
[355999165,1741790587450,-4017.79147121,0.0004658,120]
[355999166,1741790587483,-4017.79147121,0.0004658,120]
[355999167,1741790587515,-4017.79147121,0.0004658,120]
[355999168,1741790587548,-4017.79147121,0.0004658,120]
[355999169,1741790587581,-4017.79147121,0.0004658,120]
[355999170,1741790587615,-4017.79147121,0.0004658,120]
[355999171,1741790587652,-4017.79147121,0.0004658,120]
[355999172,1741790587687,-4017.79147121,0.0004658,120]
[355999173,1741790587723,-4017.79147121,0.0004658,120]
[355999174,1741790587756,-4017.79147121,0.0004658,120]
[355999175,1741790587793,-4017.79147121,0.0004658,120]
[355999176,1741790587832,-4017.79147121,0.0004658,120]
[355999177,1741790587869,-4017.79,0.0004658,120]
[355999178,1741790587906,-902.67508818,0.0004658,120]
[355999179,1741790587944,-902.67508818,0.0004658,120]
[355999180,1741790587982,-902.67508818,0.0004658,120]
[355999181,1741790588019,-902.67508818,0.0004658,120]
[355999182,1741790588056,-902.67508818,0.0004658,120]
[355999183,1741790588092,-902.67508818,0.0004658,120]
[355999184,1741790588129,-902.67508818,0.0004658,120]
[355999185,1741790588168,-902.67508818,0.0004658,120]
[355999186,1741790588206,-902.67508818,0.0004658,120]
[355999187,1741790588245,-902.67508818,0.0004658,120]
[355999188,1741790588284,-902.67508818,0.0004658,120]
[355999189,1741790588322,-902.67508818,0.0004658,120]
[355999190,1741790588361,-902.67508818,0.0004658,120]
[355999191,1741790588401,-902.67508818,0.0004658,120]
[355999192,1741790588439,-902.67508818,0.0004658,120]
[355999193,1741790588478,-902.67508818,0.0004658,120]
[355999194,1741790588513,-902.67508818,0.0004658,120]
[355999195,1741790588548,-902.67508818,0.0004658,120]
[355999196,1741790588582,-902.67508818,0.0004658,120]
[355999197,1741790588616,-902.67,0.0004658,120]
[355999198,1741790588653,-2106.24187242,0.0004658,120]
[355999199,1741790588686,-2106.24187242,0.0004658,120]
[355999200,1741790588722,-2106.24187242,0.0004658,120]
[355999201,1741790588756,-2106.24187242,0.0004658,120]
[355999202,1741790588793,-2106.24187242,0.0004658,120]
[355999203,1741790588830,-2106.24187242,0.0004658,120]
[355999204,1741790588865,-2106.24187242,0.0004658,120]
[355999205,1741790588901,-2106.24187242,0.0004658,120]
[355999206,1741790588938,-2106.24187242,0.0004658,120]
[355999207,1741790588975,-2106.24187242,0.0004658,120]
[355999208,1741790589012,-2106.24187242,0.0004658,120]
[355999209,1741790589050,-2106.24187242,0.0004658,120]
[355999210,1741790589086,-2106.24187242,0.0004658,120]
[355999211,1741790589122,-2106.24187242,0.0004658,120]
[355999212,1741790589157,-2106.24187242,0.0004658,120]
[355999213,1741790589194,-2106.24187242,0.0004658,120]
[355999214,1741790589231,-2106.24187242,0.0004658,120]
[355999215,1741790589268,-2106.24187242,0.0004658,120]
[355999216,1741790589306,-2106.24187242,0.0004658,120]
[355999217,1741790589342,-2106.24,0.0004658,120]
[355999218,1741790589379,-467.54566779,0.00046693,120]
[355999219,1741790589418,-33247.19985599,0.00046693,120]
[355999220,1741790589455,-751.32989549,0.00046694,120]
[355999221,1741790589491,-2104.43458666,0.000467,120]
[355999222,1741790589659,-2688.99,0.000468,60]
[355999223,1741790589698,-123275.02018192,0.000468,120]
[355999224,1741790589734,-60000.0,0.000468,120]
[355999225,1741790589776,-10000.0,0.00047,47]
[355999226,1741790589812,-191.48770153,0.00047,120]
[355999227,1741790589849,-50000.0,0.00047,30]
[355999228,1741790589885,-1000.0,0.00047,30]
[355999229,1741790589926,-85035.61762217,0.00047,30]
[355999230,1741790589966,-954582.36089528,0.00047,30]
[355999231,1741790616419,-5770.0189195,0.00049958,32]
[355999232,1741790616459,-244.48848044,0.00049958,30]
[355999233,1741790616498,-1174.47374992,0.00049958,60]
[355999234,1741790616537,-245.15167966,0.00049958,120]
[355999235,1741790616578,-354.46290961,0.00049958,120]
[355999236,1741790616615,-346.7623244,0.00049958,120]
[355999237,1741790616653,-10000.0,0.00049958,90]
[355999238,1741790616691,-3231.42837415,0.00049958,120]
[355999239,1741790616728,-1488.4671155,0.00049958,32]
[355999240,1741790616766,-47081.31949582,0.00049958,120]
[355999241,1741790616803,-10000.0,0.00049958,30]
[355999242,1741790616845,-200000.0,0.00049958,120]
[355999243,1741790616881,-300000.0,0.00049958,30]
[355999244,1741790616918,-382.2,0.00049958,120]
[355999245,1741790616961,-10000.0,0.00049958,31]
[355999246,1741790616998,-4165.87409,0.00049958,120]
[355999247,1741790617036,-83316.89140592,0.00049958,120]
[355999248,1741790617073,-555.7,0.00049958,120]
[355999249,1741790617111,-500.0,0.00049958,30]
[355999250,1741790617147,-10000.0,0.00049958,30]
[355999251,1741790617183,-10000.0,0.00049958,30]
[355999252,1741790617222,-150.0,0.00049958,120]
[355999253,1741790617261,-252.75,0.00049958,30]
[355999254,1741790617298,-336.25,0.00049958,30]
[355999255,1741790617335,-2000.0,0.00049958,30]
[355999256,1741790617370,-973.51099968,0.00049958,49]
[355999257,1741790617404,-17390.97712716,0.00049958,30]
[355999258,1741790617438,-2000.0,0.00049958,30]
[355999259,1741790617474,-35272.27241183,0.00049958,30]
[355999260,1741790617508,-5000.0,0.00049958,120]
[355999261,1741790617545,-5000.0,0.00049958,120]
[355999262,1741790617581,-5000.0,0.00049958,120]
[355999263,1741790617616,-5000.0,0.00049958,120]
[355999264,1741790617651,-5000.0,0.00049958,120]
[355999265,1741790617685,-5000.0,0.00049958,120]
[355999266,1741790617721,-5000.0,0.00049958,120]
[355999267,1741790617755,-5000.0,0.00049958,120]
[355999268,1741790617789,-5000.0,0.00049958,120]
[355999269,1741790617825,-5000.0,0.00049958,120]
[355999270,1741790617860,-16069.79520541,0.00049958,35]
[355999271,1741790617897,-875.89535483,0.00049958,120]
[355999272,1741790617938,-1708839.8,0.00049958,90]
[355999273,1741790617974,-435.6541847,0.00049958,120]
[355999274,1741790618012,-500.0,0.00049958,30]
[355999275,1741790618050,-1064.8628313,0.00049958,120]
[355999276,1741790618088,-98907.9229896,0.00049958,120]
[355999277,1741790618125,-1180.01350735,0.00049958,35]
[355999278,1741790618160,-874.7,0.00049958,30]
[355999279,1741790618198,-1976.0,0.00049958,120]
[355999280,1741790618237,-1079.45,0.00049958,120]
[355999281,1741790618277,-14396.73281742,0.00049958,120]
[355999282,1741790618314,-861.37031517,0.00049958,30]
[355999283,1741790618352,-158.73898545,0.00049958,120]
[355999284,1741790618391,-319392.33787385,0.00049958,30]
[355999285,1741790618428,-200000.0,0.00049958,120]
[355999286,1741790618466,-3000.0,0.00049958,120]
[355999287,1741790618503,-2109.8379992,0.00049958,120]
[355999288,1741790618539,-10000.0,0.00049958,120]
[355999289,1741790618576,-203630.65733786,0.00049958,60]
[355999290,1741790618617,-15527.25,0.00049958,30]
[355999291,1741790618655,-356.1887677,0.00049958,120]
[355999292,1741790618693,-11400.0,0.00049958,30]
[355999293,1741790618733,-516.91314458,0.00049958,30]
[355999294,1741790618769,-224.14721484,0.00049958,120]
[355999295,1741790618806,-35746.94865863,0.00049958,31]
[355999296,1741790618843,-846.85967595,0.00049958,60]
[355999297,1741790618878,-500.0,0.00049958,30]
[355999298,1741790618913,-501.61590772,0.00049958,30]
[355999299,1741790618950,-25209.54354075,0.00049958,120]
[355999300,1741790618987,-250.0,0.00049958,10]
[355999301,1741790619025,-250.0,0.00049958,10]
[355999302,1741790619061,-250.0,0.00049958,10]
[355999303,1741790619098,-407.080268,0.00049958,10]
[355999304,1741790761891,-919.17337918,0.00016454,2]
[355999305,1741790761913,-714.3159918,0.00016547,2]
[355999306,1741790761934,-12430.06191615,0.00016553,2]
[355999307,1741790761958,-500.0,0.00016553,2]
[355999308,1741790761982,-500.0,0.00016553,2]
[355999309,1741790762005,-313.35517231,0.00016553,2]
[355999310,1741790762031,-500.0,0.00016553,2]
[355999311,1741790762052,-500.0,0.00016553,2]
[355999312,1741790762087,-500.0,0.00016553,2]
[355999313,1741790762116,-500.0,0.00016553,2]
[355999314,1741790762140,-500.0,0.00016553,2]
[355999315,1741790762163,-425.8980148,0.00016553,2]
[355999316,1741790762185,-500.0,0.00016553,2]
[355999317,1741790762209,-500.0,0.00016553,2]
[355999318,1741790762232,-500.0,0.00016553,2]
[355999319,1741790762256,-500.0,0.00016553,2]
[355999320,1741790762281,-500.0,0.00016553,2]
[355999321,1741790762308,-500.0,0.00016553,2]
[355999322,1741790762337,-500.0,0.00016553,2]
[355999323,1741790762363,-500.0,0.00016553,2]
[355999324,1741790762386,-500.0,0.00016553,2]
[355999325,1741790762411,-500.0,0.00016553,2]
[355999326,1741790762434,-500.0,0.00016553,2]
[355999327,1741790762460,-500.0,0.00016553,2]
[355999328,1741790762482,-500.0,0.00016553,2]
[355999329,1741790762507,-500.0,0.00016553,2]
[355999330,1741790762532,-500.0,0.00016553,2]
[355999331,1741790762555,-500.0,0.00016553,2]
[355999332,1741790762580,-500.0,0.00016553,2]
[355999333,1741790762603,-500.0,0.00016553,2]
[355999334,1741790762629,-500.0,0.00016553,2]
[355999335,1741790762651,-500.0,0.00016553,2]
[355999336,1741790762676,-451.17234777,0.00016553,2]
[355999337,1741790762700,-500.0,0.00016553,2]
[355999338,1741790762726,-500.0,0.00016553,2]
[355999339,1741790762748,-500.0,0.00016553,2]
[355999340,1741790762773,-500.0,0.00016553,2]
[355999341,1741790762798,-500.0,0.00016553,2]
[355999342,1741790762824,-500.0,0.00016553,2]
[355999343,1741790762849,-500.0,0.00016553,2]
[355999344,1741790762874,-500.0,0.00016553,2]
[355999345,1741790762898,-500.0,0.00016553,2]
[355999346,1741790762921,-500.0,0.00016553,2]
[355999347,1741790762945,-500.0,0.00016553,2]
[355999348,1741790762970,-500.0,0.00016553,2]
[355999349,1741790762994,-500.0,0.00016553,2]
[355999350,1741790763019,-500.0,0.00016553,2]
[355999351,1741790763047,-500.0,0.00016553,2]
[355999352,1741790763077,-500.0,0.00016553,2]
[355999353,1741790763103,-500.0,0.00016553,2]
[355999354,1741790763134,-500.0,0.00016553,2]
[355999355,1741790763161,-500.0,0.00016553,2]
[355999356,1741790763187,-500.0,0.00016553,2]
[355999357,1741790763215,-500.0,0.00016553,2]
[355999358,1741790763242,-500.0,0.00016553,2]
[355999359,1741790763269,-500.0,0.00016553,2]
[355999360,1741790763300,-1844.57749585,0.00016553,2]
[355999361,1741790763332,-1844.57749585,0.00016553,2]
[355999362,1741790763359,-1844.57749585,0.00016553,2]
[355999363,1741790763386,-1844.57749585,0.00016553,2]
[355999364,1741790763415,-1844.57749585,0.00016553,2]
[355999365,1741790763440,-1844.57749585,0.00016553,2]
[355999366,1741790763467,-1844.57749585,0.00016553,2]
[355999367,1741790763494,-1844.57749585,0.00016553,2]
[355999368,1741790763520,-1844.57749585,0.00016553,2]
[355999369,1741790763545,-1844.57749585,0.00016553,2]
[355999370,1741790763576,-1844.57749585,0.00016553,2]
[355999371,1741790763605,-1844.57749585,0.00016553,2]
[355999372,1741790763633,-1844.57749585,0.00016553,2]
[355999373,1741790763662,-1844.57749585,0.00016553,2]
[355999374,1741790763690,-1844.57749585,0.00016553,2]
[355999375,1741790763717,-1844.57749585,0.00016553,2]
[355999376,1741790763743,-1844.57749585,0.00016553,2]
[355999377,1741790763769,-1844.57749585,0.00016553,2]
[355999378,1741790763794,-1844.57749585,0.00016553,2]
[355999379,1741790763825,-1844.57749585,0.00016553,2]
[355999380,1741790763851,-1844.57749585,0.00016553,2]
[355999381,1741790763876,-1844.57749585,0.00016553,2]
[355999382,1741790763901,-1844.57749585,0.00016553,2]
[355999383,1741790763925,-1844.57749585,0.00016553,2]
[355999384,1741790763951,-1844.57749585,0.00016553,2]
[355999385,1741790763977,-1844.57749585,0.00016553,2]
[355999386,1741790764002,-1844.57749585,0.00016553,2]
[355999387,1741790764030,-1844.57749585,0.00016553,2]
[355999388,1741790764056,-1844.57749585,0.00016553,2]
[355999389,1741790764084,-1844.57749585,0.00016553,2]
[355999390,1741790764110,-1844.57749584,0.00016553,2]
[355999391,1741790764135,-1844.57749584,0.00016553,2]
[355999392,1741790764161,-1844.57749584,0.00016553,2]
[355999393,1741790764186,-1844.57749584,0.00016553,2]
[355999394,1741790764211,-1844.57749584,0.00016553,2]
[355999395,1741790764236,-1844.57749584,0.00016553,2]
[355999396,1741790764261,-1844.57749584,0.00016553,2]
[355999397,1741790764285,-1496.65583161,0.00016553,2]
[355999398,1741790949806,250.0,0.00015559,2]
[355999455,1741791032183,-391.57163784,0.00016473,2]
[355999456,1741791032193,-41.81850635,0.0001655,2]
[355999483,1741791037972,-263.1560335,0.0001655,2]
[355999484,1741791037983,-500.0,0.0001655,2]
[355999485,1741791037993,-228.33675752,0.0001655,2]
[355999486,1741791038004,-565.39101368,0.0001655,2]
[355999487,1741791038014,-500.0,0.0001655,2]
[355999488,1741791038023,-158.43311276,0.0001655,2]
[355999489,1741791038033,-500.0,0.0001655,2]
[355999490,1741791038045,-390.66583143,0.0001655,2]
[355999491,1741791038058,-109.33416857,0.0001655,2]
[355999492,1741791038068,-500.0,0.0001655,2]
[355999493,1741791038078,-500.0,0.0001655,2]
[355999494,1741791038088,-500.0,0.0001655,2]
[355999495,1741791038098,-500.0,0.0001655,2]
[355999496,1741791038107,-500.0,0.0001655,2]
[355999497,1741791038117,-500.0,0.0001655,2]
[355999498,1741791038127,-500.0,0.0001655,2]
[355999499,1741791038137,-500.0,0.0001655,2]
[355999500,1741791038147,-500.0,0.0001655,2]
[355999501,1741791038157,-390.75526875,0.0001655,2]
[355999502,1741791038167,-500.0,0.0001655,2]
[355999503,1741791038178,-500.0,0.0001655,2]
[355999504,1741791038187,-500.0,0.0001655,2]
[355999505,1741791038197,-500.0,0.0001655,2]